{"text_format":"3","workbook":"xlsx","n_sheets":4,"sheets":["Nákupný zoznam","Rozpis rozpočtu","Zoznam úloh","Zdieľanie zoznamu"],"not_rendered":{"charts":2,"images":2,"defined_names":12},"read":"whole","date_system":"1900"}

{"sheet":"Nákupný zoznam","index":0,"n_rows":25,"n_cols":8,"rows_kept":25,"merged":[[2,1,2,7],[3,1,3,2],[4,4,6,7]]}
[null,"Späť do školy","Plánovač"]
[]
[null,"Sledujte si priebeh nákupov a porovnávajte ho so sumami zadanými do rozpočtu pre jednotlivé kategórie v hárku Rozpis rozpočtu."]
[null,"Súhrn rozpočtu",null,null,{"$f":"\"Priebeh nákupov (\"&COUNTIFS(Kontrolný_zoznam[Kúpené], \">0\")&\" z \"&COUNTIFS(Kontrolný_zoznam[Kúpiť], \">0\")&\")\"","v":"Priebeh nákupov (1 z 6)"}]
[null,"Rozpočet",{"v":1500,"d":"1,500.00 EUR"},null,{"$f":"IFERROR(COUNTIFS(Kontrolný_zoznam[Kúpiť],\">0\",Kontrolný_zoznam[Kúpené],\">0\")/SúčetPoložiekKúpiť,0)","v":{"v":0.16666666666666666,"d":"17%"}}]
[null,"Celkové náklady v nákupnom zozname",{"$f":"IFERROR(SUM(KontrolnýZoznamSpolu), \"\")","v":{"v":365,"d":"365.00 EUR"}}]
[null,"Zostávajúce finančné prostriedky",{"$f":"IFERROR(C5-C6, \"\")","v":{"v":1135,"d":"1,135.00 EUR"}}]
[null,"Nákupný zoznam"]
[null,"Položka","Kategória","Množstvo","Kúpiť","Náklady","Kúpené","Celkové náklady"]
[null,"Matematika","Knihy",1,1,{"v":55,"d":"55.00 EUR"},1,{"$f":"IFERROR(Kontrolný_zoznam[Množstvo]*Kontrolný_zoznam[Náklady], \"\")","v":{"v":55,"d":"55.00 EUR"}}]
[null,"Angličtina","Knihy",1,1,null,null,{"$f":"IFERROR(Kontrolný_zoznam[Množstvo]*Kontrolný_zoznam[Náklady], \"\")","v":0}]
[null,"Školská taška","Pomôcky",1,null,{"v":30,"d":"30.00 EUR"},null,{"$f":"IFERROR(Kontrolný_zoznam[Množstvo]*Kontrolný_zoznam[Náklady], \"\")","v":{"v":30,"d":"30.00 EUR"}}]
[null,"Kalkulačka","Pomôcky",1,{"$nulls":3},{"$f":"IFERROR(Kontrolný_zoznam[Množstvo]*Kontrolný_zoznam[Náklady], \"\")","v":0}]
[null,"Zvýrazňovače","Pomôcky",3,{"$nulls":3},{"$f":"IFERROR(Kontrolný_zoznam[Množstvo]*Kontrolný_zoznam[Náklady], \"\")","v":0}]
[null,"Uniforma","Oblečenie",2,1,{"v":100,"d":"100.00 EUR"},null,{"$f":"IFERROR(Kontrolný_zoznam[Množstvo]*Kontrolný_zoznam[Náklady], \"\")","v":{"v":200,"d":"200.00 EUR"}}]
[null,"Košeľa na zapínanie","Oblečenie",4,{"$nulls":3},{"$f":"IFERROR(Kontrolný_zoznam[Množstvo]*Kontrolný_zoznam[Náklady], \"\")","v":0}]
[null,"Tričká","Oblečenie",5,{"$nulls":3},{"$f":"IFERROR(Kontrolný_zoznam[Množstvo]*Kontrolný_zoznam[Náklady], \"\")","v":0}]
[null,"Krátke nohavice","Oblečenie",2,{"$nulls":3},{"$f":"IFERROR(Kontrolný_zoznam[Množstvo]*Kontrolný_zoznam[Náklady], \"\")","v":0}]
[null,"Tenisky","Oblečenie",2,1,null,null,{"$f":"IFERROR(Kontrolný_zoznam[Množstvo]*Kontrolný_zoznam[Náklady], \"\")","v":0}]
[null,"Ponožky","Oblečenie",10,{"$nulls":3},{"$f":"IFERROR(Kontrolný_zoznam[Množstvo]*Kontrolný_zoznam[Náklady], \"\")","v":0}]
[null,"Jarná vetrovka","Oblečenie",1,1,{"v":80,"d":"80.00 EUR"},null,{"$f":"IFERROR(Kontrolný_zoznam[Množstvo]*Kontrolný_zoznam[Náklady], \"\")","v":{"v":80,"d":"80.00 EUR"}}]
[null,"Svetre","Oblečenie",1,{"$nulls":3},{"$f":"IFERROR(Kontrolný_zoznam[Množstvo]*Kontrolný_zoznam[Náklady], \"\")","v":0}]
[null,"Mikiny","Oblečenie",1,{"$nulls":3},{"$f":"IFERROR(Kontrolný_zoznam[Množstvo]*Kontrolný_zoznam[Náklady], \"\")","v":0}]
[null,"Bielizeň","Oblečenie",10,{"$nulls":3},{"$f":"IFERROR(Kontrolný_zoznam[Množstvo]*Kontrolný_zoznam[Náklady], \"\")","v":0}]
[null,"Zimná vetrovka","Oblečenie",1,1,null,null,{"$f":"IFERROR(Kontrolný_zoznam[Množstvo]*Kontrolný_zoznam[Náklady], \"\")","v":0}]

{"sheet":"Rozpis rozpočtu","index":1,"n_rows":6,"n_cols":3,"rows_kept":6}
[null,"Rozpis rozpočtu"]
[null,"Pridajte kategórie a sumy rozpočtu, ktoré si budete sledovať v nákupnom zozname."]
[null,"Kategória","Celkové náklady"]
[null,"Oblečenie",{"$f":"IFERROR(SUMIFS(Kontrolný_zoznam[Celkové náklady],Kontrolný_zoznam[Kategória],Kategória[Kategória]), \"\")","v":{"v":280,"d":"280.00 EUR"}}]
[null,"Pomôcky",{"$f":"IFERROR(SUMIFS(Kontrolný_zoznam[Celkové náklady],Kontrolný_zoznam[Kategória],Kategória[Kategória]), \"\")","v":{"v":30,"d":"30.00 EUR"}}]
[null,"Knihy",{"$f":"IFERROR(SUMIFS(Kontrolný_zoznam[Celkové náklady],Kontrolný_zoznam[Kategória],Kategória[Kategória]), \"\")","v":{"v":55,"d":"55.00 EUR"}}]

{"sheet":"Zoznam úloh","index":2,"n_rows":22,"n_cols":3,"rows_kept":22}
[null,"Zoznam úloh"]
[null,"Sledujte si všetky aktivity, ktoré potrebujete vybaviť, kým sa začne školský rok."]
[null,"Hotovo","Úloha"]
[null,"x","Vyplniť všetky registračné formuláre"]
[null,null,"Objednať v prípade potreby prehliadku u všeobecného lekára a u očného"]
[null,null,"Skontrolovať všetky povinné očkovania"]
[null,null,"Získať potvrdenie od lekára k dávkovaniu všetkých potrebných liekov"]
[null,null,"Overiť, aké má škola predpísané oblečenie"]
[null,null,"Získať zoznam školských pomôcok"]
[null,null,"Stretnúť sa s vyučujúcim"]
[null,null,"Zistiť, aký spôsob komunikácie vyučujúci uprednostňuje (telefón, e-mail, písomné oznámenia)"]
[null,null,"Absolvovať s dieťaťom prehliadku školy"]
[null,null,"Pomôcť dieťaťu naučiť sa naspamäť telefónne číslo domov, telefónne číslo do práce a adresu domov"]
[null,null,"Naplánovať spôsob dopravy do školy, stanoviť si miesto stretnutia, prejsť si presun do školy"]
[null,null,"Prejsť si s dieťaťom niekoľkokrát cestu do a zo školy (v prípade pešieho dochádzania)"]
[null,null,"Zoznámiť dieťa s rodičmi, ktorý ho budú voziť do školy (v prípade vozenia inými rodičmi)"]
[null,null,"Prejsť si časy a zastávky autobusu (v prípade dopravy autobusom)"]
[null,null,"Dohodnúť družinu a mimoškolské aktivity"]
[null,null,"Naplánovať raňajky, desiate, obedy a olovranty"]
[null,null,"Dohodnúť miesto, kde sa budú robiť domáce úlohy, a stanoviť ich harmonogram"]
[null,null,"Zaviesť večierku minimálne dva týždne pred začiatkom školy"]
[null,null,"Pripraviť kalendár všetkých školských udalostí a aktivít"]

{"sheet":"Zdieľanie zoznamu","index":3,"n_rows":4,"n_cols":5,"rows_kept":4}
[null,"Zdieľanie zoznamu",null,null,"Zdieľajte tento zoznam s ostatnými, aby mohli posielať svoje poznámky. Vpravo hore vyberte položku Zdieľať alebo stlačte kombináciu klávesov ALT + X. Uložte súbor do OneDrivu a odošlite prepojenie priateľom."]
[null,"Meno","E-mail","Zdieľané?"]
[null,"Osoba 1","meno@email.com","Áno"]
[null,"Osoba 2","meno@email.com","Nie"]